bitfinex-derivatives/quotes_SOLF0:USTF0_20251229
["timestamp","ask_amount","ask_price","bid_price","bid_amount"]
[1766968593906,0.05436436,127.5,127.47,0.05364085]
[1766968594301,0.05346254,127.53,127.47,0.05364085]
[1766968594502,10.1,127.57,127.47,0.05364085]
[1766968594809,10.1,127.57,127.44,3.41181859]
[1766968595009,10.1,127.57,127.47,3.41181859]
[1766968595303,10.1,127.57,127.51,0.05254351]
[1766968595511,0.05264435,127.53,127.51,0.00254351]
[1766968598209,10.1,127.58,127.51,0.00254351]
[1766968598509,10.1,127.58,127.49,3.41181859]
[1766968598801,10.1,127.56,127.45,3.41181859]
[1766968599399,0.04987143,127.52,127.49,0.04967715]
[1766968600594,0.04987143,127.52,127.46,7.0665]
[1766968600799,0.04987143,127.52,127.44,7.0675]
[1766968601001,10.1,127.54,127.44,7.0675]
[1766968601708,0.05344718,127.5,127.42,7.0687]
[1766968601915,10.1,127.5,127.38,3.41181859]
[1766968602710,0.05155569,127.45,127.38,3.41181859]
[1766968603206,0.05155569,127.45,127.33,117.07532947]
[1766968603207,10.1,127.5,127.4,3.41181859]
[1766968603399,10.1,127.5,127.41,7.0691]
[1766968603802,10.1,127.49,127.39,7.0704]
[1766968603998,10.1,127.48,127.39,7.0704]
[1766968604205,10.1,127.48,127.37,3.41181859]
[1766968604206,0.05653161,127.45,127.42,0.05445838]
[1766968604598,10.15653161,127.45,127.42,0.05445838]
[1766968605405,13.5683502,127.45,127.42,0.05445838]
[1766968605609,7.99,127.44,127.32,3.41181859]
[1766968605811,7.99,127.44,127.36,3.41181859]
[1766968606514,0.05210631,127.41,127.36,3.41181859]
[1766968606911,0.05210631,127.41,127.37,7.0713]
[1766968607100,0.06018047,127.4,127.37,7.0713]
[1766968607304,7.99,127.46,127.34,3.41181859]
[1766968607832,7.99,127.44,127.32,3.41181859]
[1766968608010,7.99,127.43,127.34,7.0732]
[1766968608217,7.99,127.42,127.34,7.0732]
[1766968608512,0.05987898,127.39,127.37,0.04952194]
[1766968608912,7.99,127.45,127.37,0.04952194]
[1766968609111,7.99,127.45,127.34,3.41181859]
[1766968609908,0.04982541,127.41,127.38,0.05159461]
[1766968615918,10.47701859,127.49,127.38,0.05159461]
[1766968616124,10.47701859,127.49,127.36,3.41181859]
[1766968616419,92.6,127.52,127.4,3.41181859]
[1766968616420,3.41181859,127.52,127.4,3.41181859]
[1766968616615,10.47541859,127.52,127.4,3.41181859]
[1766968616811,3.41181859,127.52,127.4,3.41181859]
[1766968617014,0.05940507,127.47,127.45,0.00255889]
[1766968617314,3.41181859,127.52,127.45,0.00255889]
[1766968617714,7.0641,127.51,127.45,0.00255889]
[1766968617917,8.04,127.5,127.45,0.00255889]
[1766968618110,8.04,127.48,127.45,0.00255889]
[1766968618923,8.04,127.47,127.36,7.0719]
[1766968619915,0.05685787,127.43,127.4,0.05018834]
[1766968620113,8.04,127.47,127.4,0.05018834]
[1766968620318,8.04,127.51,127.41,3.41181859]
[1766968620509,8.04,127.51,127.39,3.41181859]
[1766968621209,8.04,127.51,127.44,3.47009569]
[1766968621414,8.04,127.51,127.44,0.0582771]
[1766968622229,0.0497645,127.49,127.44,3.47009569]
[1766968622421,0.0497645,127.49,127.45,0.05366819]
[1766968622720,8.04,127.54,127.46,3.41181859]
[1766968623115,8.04,127.54,127.39,10.35915228]
[1766968623116,8.04,127.54,127.44,3.41181859]
[1766968623715,0.05107673,127.5,127.42,3.41181859]
[1766968623920,8.04,127.53,127.44,7.0675]
[1766968624324,8.04,127.53,127.44,3.41181859]
[1766968624720,0.05711983,127.5,127.47,0.04976524]
[1766968625126,3.41181859,127.57,127.47,0.04976524]
[1766968625328,8.04,127.56,127.47,7.0657]
[1766968625924,8.04,127.56,127.46,3.41181859]
[1766968626229,0.0591431,127.52,127.44,3.41181859]
[1766968626528,8.04,127.54,127.44,7.0676]
[1766968626728,8.04,127.53,127.42,3.41181859]
[1766968626929,8.04,127.52,127.39,3.41181859]
[1766968627327,0.05036931,127.47,127.44,0.05934252]
[1766968627522,0.05036931,127.47,127.44,0.05550721]
[1766968627722,0.05036931,127.47,127.38,6.94733369]
[1766968627723,0.05036931,127.47,127.4,7.0697]
[1766968627923,8.04,127.46,127.34,10.35915228]
[1766968628124,8.04,127.46,127.33,3.41181859]
[1766968628430,8.04,127.46,127.32,6.94733369]
[1766968628623,8.04,127.46,127.34,3.41181859]
[1766968628932,0.05220631,127.41,127.39,0.05929431]
[1766968629132,8.04,127.45,127.39,0.05929431]
[1766968629324,8.04,127.49,127.38,3.41181859]
[1766968629530,8.04,127.48,127.38,3.41181859]
[1766968629725,8.04,127.46,127.36,3.41181859]
[1766968629931,8.04,127.46,127.37,7.0714]
[1766968630236,0.05597578,127.43,127.4,0.05090963]
[1766968630823,8.04,127.46,127.4,0.05090963]
[1766968631636,8.04,127.53,127.44,3.41181859]
[1766968631822,0.05993769,127.5,127.47,0.05358201]
[1766968632327,0.05993769,127.5,127.47,0.00358201]
[1766968635030,8.09993769,127.5,127.47,0.00358201]
[1766968635734,8.09993769,127.5,127.4,6.94733369]
[1766968635936,8.04,127.5,127.4,6.94733369]
[1766968636133,8.04,127.5,127.42,7.0686]
[1766968636431,8.04,127.5,127.42,6.94733369]
[1766968636830,0.05189464,127.47,127.45,0.05718274]
[1766968640139,0.05189464,127.47,127.43,7.068]
[1766968640434,0.05189464,127.47,127.42,6.94733369]
[1766968640936,8.04,127.5,127.44,7.0675]
[1766968641635,6.31,127.53,127.45,7.0667]
[1766968641842,0.05334579,127.5,127.48,0.05275916]
[1766968642030,0.05334579,127.5,127.48,0.00275916]
[1766968642936,6.36334579,127.5,127.48,0.00275916]
[1766968643134,6.36334579,127.5,127.43,7.068]
[1766968644144,6.36334579,127.5,127.45,0.05499043]
[1766968645142,6.31,127.48,127.4,6.94733369]
[1766968645343,6.31,127.48,127.4,10.35915228]
[1766968645535,3.41181859,127.56,127.44,3.41181859]
[1766968645739,6.31,127.55,127.44,10.35915228]
[1766968646134,0.06027077,127.51,127.48,0.04991507]
[1766968649455,6.37027077,127.51,127.44,7.0673]
[1766968649646,6.31,127.51,127.42,6.94733369]
[1766968649954,6.31,127.51,127.43,6.94733369]
[1766968650144,6.31,127.51,127.42,6.94733369]
[1766968650349,6.31,127.51,127.41,12.50504207]
[1766968650546,0.055809,127.48,127.45,0.05566899]
[1766968650748,6.31,127.51,127.45,7.12256899]
[1766968651755,0.05720729,127.49,127.45,7.12256899]
[1766968651950,0.05720729,127.49,127.45,0.05566899]
[1766968651951,6.36720729,127.49,127.45,0.05566899]
[1766968652152,6.36720729,127.49,127.38,6.94733369]
[1766968652352,6.31,127.49,127.37,6.94733369]
[1766968652550,6.31,127.49,127.4,7.0697]
[1766968653057,6.31,127.47,127.37,6.94733369]
[1766968653360,6.31,127.47,127.34,9.34996551]
[1766968653361,0.05613128,127.43,127.41,0.00083627]
[1766968653560,6.31,127.45,127.41,0.00083627]
[1766968654454,0.05105728,127.44,127.41,0.00083627]
[1766968660264,4.65,127.5,127.41,0.00083627]
[1766968660462,4.65,127.5,127.39,6.94733369]
[1766968661062,0.05183414,127.46,127.39,14.01763369]
[1766968661263,4.70183414,127.46,127.39,7.0703]
[1766968662660,4.70183414,127.46,127.38,6.94733369]
[1766968662864,0.05611602,127.43,127.39,6.94733369]
[1766968663162,0.05611602,127.43,127.37,14.90767389]
[1766968663163,4.65,127.46,127.38,6.94733369]
[1766968663663,4.65,127.46,127.41,7.0691]
[1766968664069,0.05279876,127.45,127.42,0.05264408]
[1766968665867,3.82279876,127.45,127.37,6.94733369]
[1766968666065,3.77,127.45,127.37,6.94733369]
[1766968666662,3.77,127.45,127.37,14.01853369]
[1766968666869,0.05178698,127.42,127.37,6.94733369]
[1766968667067,0.05178698,127.42,127.38,6.94733369]
[1766968667364,0.00127887,127.41,127.37,6.94733369]
[1766968667562,0.00127887,127.41,127.39,7.0702]
[1766968667966,0.00127887,127.41,127.37,6.94733369]
[1766968668271,0.00127887,127.41,127.38,0.04974472]
[1766968673977,0.00127887,127.41,127.34,14.02023369]
[1766968674170,0.00127887,127.41,127.34,7.0729]
[1766968676674,0.00127887,127.41,127.33,6.94733369]
[1766968676970,3.77,127.43,127.33,6.94733369]
[1766968677479,3.77,127.43,127.35,7.0726]
[1766968677879,0.05505289,127.4,127.38,0.05968562]
[1766968679980,0.05505289,127.4,127.34,7.073]
[1766968680473,109.877,127.52,127.31,6.94733369]
[1766968680474,3.26,127.48,127.36,5.55770838]
[1766968680883,3.26,127.47,127.34,5.55770838]
[1766968681176,92.64,127.52,127.34,5.55770838]
[1766968681177,3.26,127.44,127.35,7.0724]
[1766968681681,0.05652578,127.41,127.38,0.05848131]
[1766968686482,3.31652578,127.41,127.33,7.0735]
[1766968686688,3.26,127.41,127.33,7.0735]
[1766968687585,0.06006661,127.38,127.33,7.0735]
[1766968688384,0.06006661,127.38,127.28,2.0]
[1766968688385,0.06006661,127.38,127.31,6.94733369]
[1766968688584,0.05265572,127.36,127.3,6.94733369]
[1766968689185,0.05265572,127.36,127.32,7.0742]
[1766968689385,0.05265572,127.36,127.3,12.50504207]
[1766968689386,0.00265572,127.36,127.3,12.50504207]
[1766968689986,0.00265572,127.36,127.32,7.0741]
[1766968690386,0.00265572,127.36,127.33,0.05]
[1766968693093,0.00265572,127.36,127.33,7.1237]
[1766968694283,7.0682,127.44,127.35,7.0722]
[1766968694482,3.26,127.42,127.31,6.94733369]
[1766968694687,3.26,127.42,127.28,9.34996551]
[1766968694688,3.26,127.42,127.29,6.94733369]
[1766968694888,3.26,127.42,127.3,6.94733369]
[1766968695295,0.0579107,127.37,127.35,0.05265572]
[1766968695497,0.0572666,127.37,127.35,0.05265572]
[1766968697195,0.0572666,127.37,127.3,7.0751]
[1766968697497,3.3072666,127.37,127.29,6.94733369]
[1766968697690,3.3072666,127.37,127.26,6.94733369]
[1766968697691,3.25,127.36,127.26,6.94733369]
[1766968698295,3.25,127.36,127.3,0.05122646]
[1766968699192,0.0595685,127.34,127.3,0.05122646]
[1766968704299,3.3095685,127.34,127.3,0.05122646]
[1766968708601,3.25,127.33,127.3,0.05122646]
[1766968710202,3.25,127.33,127.21,3.43236875]
[1766968710508,1.28187624,127.29,127.18,99.54733369]
[1766968710806,1.28187624,127.27,127.2,1.28187624]
[1766968711103,3.25,127.29,127.2,7.0807]
[1766968711104,0.04968204,127.25,127.2,7.0807]
[1766968711302,3.25,127.29,127.17,6.94733369]
[1766968711303,3.25,127.29,127.22,1.28187624]
[1766968712200,0.05725147,127.27,127.24,0.04968204]
[1766968715205,0.05725147,127.27,127.21,1.28187624]
[1766968715403,1.28187624,127.29,127.21,1.28187624]
[1766968716001,0.05782311,127.26,127.21,1.28187624]
[1766968716199,3.25,127.3,127.23,8.36097624]
[1766968716506,23.57,127.36,127.21,1.28187624]
[1766968716507,4.53187624,127.29,127.21,1.28187624]
[1766968716705,1.28187624,127.28,127.21,7.0801]
[1766968716908,4.53187624,127.28,127.21,7.0801]
[1766968717306,0.05924871,127.26,127.23,0.05503725]
[1766968721307,1.34112495,127.26,127.23,0.05503725]
[1766968721809,1.28187624,127.25,127.23,0.05503725]
[1766968722013,1.28187624,127.24,127.17,1.28187624]
[1766968722312,3.25,127.25,127.18,1.28187624]
[1766968722511,3.25,127.25,127.19,7.0814]
[1766968722512,4.53187624,127.25,127.19,7.0814]
[1766968722816,4.53187624,127.25,127.17,1.28187624]
[1766968723009,0.0540881,127.22,127.17,1.28187624]
[1766968723312,0.0540881,127.22,127.18,7.082]
[1766968724413,4.53187624,127.25,127.18,1.28187624]
[1766968724709,3.25,127.25,127.18,1.28187624]
[1766968724902,3.25,127.28,127.2,1.28187624]
[1766968725105,1.28187624,127.29,127.22,1.28187624]
[1766968725310,0.05555812,127.27,127.24,0.04987129]
[1766968725509,0.04994074,127.27,127.24,0.05525494]
[1766968728815,0.04994074,127.27,127.24,7.13395494]
[1766968731520,0.04994074,127.27,127.24,0.05525494]
[1766968735520,4.61187624,127.31,127.24,7.13395494]
[1766968735817,4.61187624,127.31,127.24,7.0787]
[1766968736613,1.28187624,127.34,127.26,1.33977374]
[1766968736814,1.28187624,127.34,127.26,1.28187624]
[1766968736815,4.61187624,127.34,127.26,1.28187624]
[1766968737621,0.05980108,127.31,127.29,0.05092233]
[1766968740522,3.33,127.34,127.29,0.05092233]
[1766968740923,1.28187624,127.33,127.29,0.05092233]
[1766968741118,4.61187624,127.34,127.29,0.05092233]
[1766968741624,0.05966109,127.33,127.29,0.05092233]
[1766968741822,0.0535981,127.32,127.3,0.05136147]
[1766968742115,0.0535981,127.32,127.3,0.05726376]
[1766968742315,0.0535981,127.32,127.23,7.06197195]
[1766968742316,1.28187624,127.31,127.24,1.28187624]
[1766968742522,1.28187624,127.31,127.23,1.28187624]
[1766968742722,1.28187624,127.31,127.23,8.34384819]
[1766968742908,1.28187624,127.31,127.24,1.28187624]
[1766968743109,1.28187624,127.32,127.25,1.28187624]
[1766968743311,3.33,127.33,127.27,0.04980546]
[1766968743312,0.05430746,127.3,127.27,0.04980546]
[1766968743518,3.33,127.33,127.27,1.3316817]
[1766968743719,140.33382479,127.4,127.27,1.3316817]
[1766968743720,1.28187624,127.35,127.27,1.3316817]
[1766968743915,1.28187624,127.35,127.27,1.28187624]
[1766968744222,1.28187624,127.35,127.28,8.35827624]
[1766968744519,4.61187624,127.36,127.28,1.28187624]
[1766968744724,0.05491819,127.33,127.3,0.05421009]
[1766968746113,0.05491819,127.33,127.3,7.12951009]
[1766968746314,0.05491819,127.33,127.3,0.05421009]
[1766968746716,0.00491819,127.33,127.3,7.12961009]
[1766968751227,4.61187624,127.31,127.24,7.06197195]
[1766968751419,1.28187624,127.26,127.2,7.06197195]
[1766968751625,1.28187624,127.27,127.2,1.28187624]
[1766968751826,4.61187624,127.28,127.2,8.34384819]
[1766968752122,1.28187624,127.27,127.2,1.28187624]
[1766968752322,0.05970433,127.25,127.22,0.05140156]
[1766968752726,0.05970433,127.25,127.22,7.13130156]
[1766968752931,1.28187624,127.29,127.22,0.05140156]
[1766968753130,1.28187624,127.29,127.21,1.28187624]
[1766968753434,1.28187624,127.28,127.23,7.0793]
[1766968753727,3.33,127.34,127.2,7.06197195]
[1766968753920,1.28187624,127.32,127.26,0.05513403]
[1766968754128,1.28187624,127.32,127.25,1.28187624]
[1766968754632,1.28187624,127.35,127.28,1.28187624]
[1766968754826,1.28187624,127.35,127.27,1.28187624]
[1766968755022,0.0036382,127.31,127.29,0.05530874]
[1766968755222,3.19,127.4,127.25,7.06197195]
[1766968755424,1.28187624,127.39,127.3,1.28187624]
[1766968755627,1.28187624,127.37,127.3,1.28187624]
[1766968755930,0.0585432,127.35,127.32,0.05050277]
[1766968760127,0.0585432,127.35,127.32,7.12470277]
[1766968761740,0.0585432,127.35,127.32,0.05050277]
[1766968765633,1.28187624,127.33,127.26,8.34384819]
[1766968765833,1.28187624,127.33,127.25,8.34384819]
[1766968766141,1.28187624,127.31,127.26,7.0774]
[1766968766736,9.942e-05,127.32,127.27,0.05675438]
[1766968766942,3.19,127.33,127.27,0.05675438]
[1766968767643,4.47187624,127.33,127.28,7.0764]
[1766968767847,0.04945531,127.31,127.28,7.0764]
[1766968768142,0.04945531,127.31,127.27,0.05675438]
[1766968768640,0.04945531,127.31,127.27,7.13375438]
[1766968769156,0.04945531,127.31,127.27,0.05675438]
[1766968770649,0.04945531,127.31,127.28,7.0764]
[1766968771353,5.19190706,127.36,127.27,0.05675438]
[1766968771551,3.19,127.35,127.27,2.0]
[1766968771751,3.19,127.35,127.28,7.0762]
[1766968771952,3.19,127.33,127.28,7.0762]
[1766968772149,3.19,127.33,127.29,0.06019337]
[1766968772449,0.05497374,127.32,127.29,0.06019337]
[1766968773045,2.0568808,127.32,127.29,0.00019337]
[1766968773252,5.2468808,127.32,127.29,0.00019337]
[1766968773842,2.00190706,127.33,127.29,0.00019337]
[1766968774952,0.05613517,127.32,127.29,0.00019337]
[1766968784262,3.24613517,127.32,127.29,0.00019337]
[1766968784459,3.24613517,127.32,127.24,3.21]
[1766968784756,3.24613517,127.32,127.22,7.06197195]
[1766968784757,3.19,127.29,127.22,7.06197195]
[1766968784961,5.19190706,127.28,127.21,10.2904]
[1766968785162,3.19,127.27,127.18,10.27197195]
[1766968785454,2.00190706,127.28,127.21,0.0497409]
[1766968785455,0.05676153,127.24,127.21,0.0497409]
[1766968785860,0.05676153,127.24,127.17,7.06197195]
[1766968785861,3.23676153,127.24,127.17,7.06197195]
[1766968786050,3.18,127.22,127.15,3.41]
[1766968786250,2.00190706,127.28,127.16,5.41190706]
[1766968786446,2.00190706,127.26,127.16,5.41190706]
[1766968786859,0.05264615,127.22,127.2,0.05055459]
[1766968787259,0.05264615,127.22,127.2,0.00055459]
[1766968788360,3.23264615,127.22,127.2,0.00055459]
[1766968788562,5.23455321,127.22,127.13,3.41]
[1766968788865,5.18190706,127.22,127.13,3.41]
[1766968789065,3.18,127.22,127.13,3.41]
[1766968789562,3.18,127.22,127.16,0.05988111]
[1766968789563,0.05805818,127.19,127.16,0.05988111]
[1766968791959,3.18,127.22,127.16,7.14288111]
[1766968792154,3.18,127.22,127.16,0.05988111]
[1766968792968,0.0577061,127.2,127.16,0.05988111]
[1766968794954,3.4977061,127.2,127.13,3.41]
[1766968795156,3.4977061,127.2,127.11,9.90789217]
[1766968795356,3.44,127.2,127.11,9.90789217]
[1766968795656,3.44,127.2,127.11,13.25789217]
[1766968796058,0.05519126,127.17,127.14,0.06024168]
[1766968799067,0.05519126,127.17,127.14,0.00024168]
[1766968800365,5.44190706,127.21,127.14,3.35024168]
[1766968800366,3.44,127.21,127.14,3.35024168]
[1766968800663,3.44,127.24,127.15,5.35190706]
[1766968800865,3.44,127.24,127.14,0.00024168]
[1766968800866,3.44,127.24,127.16,3.35]
[1766968801062,5.44190706,127.23,127.16,3.35]
[1766968801458,0.05508117,127.21,127.18,0.05929532]
[1766968804471,5.44190706,127.26,127.18,0.05929532]
[1766968804672,3.44,127.26,127.17,3.35]
[1766968805063,3.44,127.26,127.18,10.432]
[1766968805469,0.05076502,127.23,127.21,0.06008124]
[1766968811275,3.44,127.29,127.21,3.41008124]
[1766968811578,3.44,127.29,127.21,3.35]
[1766968812173,0.05039982,127.26,127.24,0.06035017]
[1766968817981,3.16,127.31,127.24,0.06035017]
[1766968818177,3.16,127.31,127.24,3.40035017]
[1766968819189,0.05570345,127.29,127.24,3.40035017]
[1766968819685,0.05570345,127.29,127.24,0.06035017]
[1766968820073,0.05570345,127.29,127.24,5.40225723]
[1766968820386,3.16,127.33,127.25,3.34]
[1766968820888,5.16190706,127.33,127.25,3.34]
[1766968821389,0.05796403,127.3,127.28,0.05910935]
[1766968824094,3.16,127.35,127.28,0.05910935]
[1766968824293,3.16,127.35,127.27,3.34]
[1766968824496,2.00190706,127.34,127.27,3.34]
[1766968824790,5.16190706,127.34,127.27,3.34]
[1766968824991,0.05647588,127.32,127.29,0.05713857]
[1766968828892,0.05647588,127.32,127.24,7.0785]
[1766968828893,3.21647588,127.32,127.24,7.0785]
[1766968829205,3.21647588,127.32,127.21,7.05911101]
[1766968829206,3.16,127.35,127.26,3.34]
[1766968830096,3.16,127.35,127.25,2.00190706]
[1766968830097,0.05654234,127.32,127.29,0.05438332]
[1766968835591,1.33724991,127.32,127.29,0.05438332]
[1766968836598,1.28070757,127.31,127.29,0.05438332]
[1766968837897,23.57,127.42,127.29,0.05438332]
[1766968838095,1.28070757,127.36,127.29,4.62070757]
[1766968838301,4.44070757,127.36,127.29,3.34]
[1766968838504,1.28070757,127.35,127.29,3.34]
[1766968838894,1.28070757,127.35,127.23,2.0]
[1766968838895,0.05387,127.33,127.31,0.06012361]
[1766968839303,1.33457757,127.33,127.27,3.34]
[1766968839803,0.05387,127.33,127.28,7.0764]
[1766968840408,3.16,127.37,127.29,4.67348382]
[1766968840597,1.28070757,127.36,127.29,4.62070757]
[1766968840991,1.28070757,127.36,127.29,3.34]
[1766968841290,7.071,127.39,127.31,1.28070757]
[1766968841291,4.44070757,127.39,127.31,1.28070757]
[1766968841496,0.05346823,127.36,127.34,0.0521145]
[1766968841891,1.28070757,127.35,127.28,3.34]
[1766968842097,1.28070757,127.34,127.28,3.34]
[1766968842912,3.16,127.35,127.28,3.34]
[1766968842913,0.05758985,127.32,127.3,0.05445]
[1766968848709,1.28070757,127.36,127.3,7.12985]
[1766968848907,1.28070757,127.36,127.3,7.0754]
[1766968849109,1.28070757,127.35,127.28,3.34]
[1766968849307,1.28070757,127.35,127.29,7.0758]
[1766968849604,0.05236754,127.33,127.31,0.05149554]
[1766968862811,3.38,127.39,127.32,1.28070757]
[1766968863016,4.66070757,127.39,127.31,11.55460353]
[1766968863316,1.28070757,127.38,127.31,11.57550757]
[1766968863512,1.28070757,127.38,127.31,18.62940353]
[1766968863711,4.66070757,127.36,127.29,10.27389596]
[1766968863919,0.05644431,127.34,127.31,0.06027088]
[1766968865118,0.05644431,127.34,127.28,7.05389596]
[1766968865119,1.28070757,127.33,127.28,7.05389596]
[1766968865314,0.05644431,127.34,127.28,4.50070757]
[1766968865613,0.05644431,127.34,127.28,11.55460353]
[1766968865817,0.05644431,127.34,127.28,10.27389596]
[1766968866019,0.05644431,127.34,127.28,17.35019596]
[1766968866220,0.05644431,127.34,127.3,0.05434202]
[1766968868124,1.33715188,127.34,127.3,0.05434202]
[1766968868324,0.05644431,127.34,127.3,0.05434202]
[1766968868522,1.33715188,127.34,127.3,0.05434202]
[1766968869016,0.05644431,127.34,127.3,0.05434202]
[1766968874523,2.15644431,127.34,127.3,0.05434202]
[1766968875120,1.28070757,127.32,127.28,7.05389596]
[1766968875323,1.28070757,127.32,127.27,7.05389596]
[1766968875725,3.39070757,127.33,127.27,7.05389596]
[1766968876125,3.39070757,127.33,127.29,0.05649834]
[1766968876126,0.05508097,127.31,127.29,0.05649834]
[1766968882931,0.05508097,127.31,127.25,9.4522125]
[1766968882932,3.44578854,127.31,127.24,12.7522125]
[1766968883233,3.39070757,127.31,127.24,4.58070757]
[1766968883634,3.39070757,127.31,127.25,3.3]
[1766968884230,0.05031609,127.29,127.27,0.06011656]
[1766968884635,1.33102366,127.29,127.22,3.3]
[1766968884932,1.28070757,127.29,127.22,3.3]
[1766968885330,1.28070757,127.27,127.22,3.3]
[1766968885532,1.33153815,127.26,127.23,0.00463289]
[1766968885728,1.28070757,127.26,127.19,3.3]
[1766968886639,0.05458942,127.24,127.21,0.05020004]
[1766968887233,92.72,127.33,127.21,0.05020004]
[1766968887234,1.28070757,127.33,127.23,1.28070757]
[1766968887434,23.57,127.38,127.23,1.28070757]
[1766968887435,23.57,127.38,127.26,4.58070757]
[1766968887633,1.28070757,127.34,127.27,4.58070757]
[1766968888137,0.05627455,127.32,127.29,0.05209738]
[1766968888522,0.05627455,127.32,127.29,0.00209738]
[1766968892943,92.72,127.39,127.29,0.00209738]
[1766968892944,2.00131061,127.4,127.3,2.00131061]
[1766968893236,23.57,127.43,127.31,3.3]
[1766968893437,25.57131061,127.43,127.33,5.30131061]
[1766968894034,0.05848062,127.39,127.33,3.3]
[1766968895030,0.05848062,127.39,127.35,0.05811931]
[1766968895230,9.13049123,127.39,127.35,0.05811931]
[1766968897037,7.12918062,127.39,127.35,0.05811931]
[1766968898642,0.05848062,127.39,127.35,0.05811931]
[1766968899044,0.05848062,127.39,127.35,3.35811931]
[1766968908958,2.00131061,127.38,127.32,3.36]
[1766968909247,2.00131061,127.38,127.29,3.36]
[1766968909956,0.0496523,127.35,127.32,0.05453456]
[1766968910254,0.0496523,127.35,127.32,0.05831849]
[1766968916942,2.00131061,127.32,127.24,3.21]
[1766968917538,2.00131061,127.32,127.25,3.21]
[1766968917743,2.00131061,127.34,127.25,3.21]
[1766968917950,0.00037672,127.3,127.28,3.21]
[1766968918747,2.00131061,127.36,127.28,3.21]
[1766968919646,2.00131061,127.36,127.26,7.0776]
[1766968919647,2.00131061,127.31,127.26,3.21]
[1766968919843,23.57,127.4,127.23,3.21]
[1766968919844,2.00131061,127.29,127.23,3.21]
[1766968920849,2.00131061,127.29,127.25,0.05011617]
[1766968920850,0.05668557,127.27,127.25,0.05011617]
[1766968921056,2.05799618,127.27,127.2,3.21]
[1766968921243,2.00131061,127.24,127.17,3.21]
[1766968922055,2.05888773,127.22,127.19,0.05128006]
[1766968922453,0.05757712,127.22,127.19,0.05128006]
[1766968925053,0.05757712,127.22,127.16,3.29180964]
[1766968926258,0.05757712,127.22,127.18,0.0532548]
[1766968929747,5.64314689,127.22,127.18,0.0532548]
[1766968930768,5.58556977,127.26,127.18,3.2632548]
[1766968931060,5.58556977,127.26,127.18,3.21]
[1766968931657,92.76,127.3,127.16,3.29180964]
[1766968931658,5.58556977,127.24,127.16,3.29180964]
[1766968931858,0.05662753,127.21,127.19,0.05193187]
[1766968937670,7.0791,127.24,127.19,0.05193187]
[1766968937964,5.58556977,127.28,127.19,3.48193187]
[1766968938164,5.58556977,127.28,127.19,3.43]
[1766968938371,12.66346977,127.26,127.19,3.43]
[1766968938663,12.66346977,127.26,127.21,0.0591263]
[1766968938863,0.05232029,127.24,127.21,0.0591263]
[1766968940961,5.63789006,127.24,127.16,6.72180964]
[1766968941268,5.58556977,127.24,127.16,6.72180964]
[1766968941868,0.05619421,127.21,127.19,0.05672315]
[1766968942466,0.05619421,127.21,127.12,3.43]
[1766968942670,5.58556977,127.2,127.12,3.43]
[1766968942969,5.58556977,127.24,127.12,3.43]
[1766968943169,5.58556977,127.26,127.13,3.43]
[1766968943564,0.05503951,127.21,127.18,3.48089]
[1766968943862,0.05503951,127.21,127.18,3.48305119]
[1766968944061,5.58556977,127.26,127.18,3.48305119]
[1766968944270,5.58556977,127.26,127.18,3.43]
[1766968944471,2.00478643,127.24,127.18,3.43]
[1766968944967,0.05420738,127.22,127.2,0.05513495]
[1766968945170,2.00478643,127.26,127.2,0.05513495]
[1766968945469,2.00478643,127.26,127.18,3.43]
[1766968946059,7.0776,127.27,127.18,3.43]
[1766968946265,0.05756203,127.24,127.21,0.05910347]
[1766968950471,2.06234846,127.24,127.17,3.43]
[1766968950679,2.00478643,127.22,127.17,3.43]
[1766968951070,2.00478643,127.24,127.17,3.43]
[1766968951578,0.0541818,127.22,127.19,0.06030285]
[1766968952178,0.0541818,127.22,127.19,3.49030285]
[1766968953184,1.28288094,127.2,127.17,3.43]
[1766968953473,1.28288094,127.2,127.14,3.43]
[1766968954168,1.28288094,127.2,127.16,0.0512481]
[1766968954169,0.00219734,127.18,127.16,0.0512481]
[1766968955677,7.0792,127.24,127.16,3.4812481]
[1766968955873,7.0792,127.24,127.16,3.43]
[1766968956182,1.28288094,127.22,127.16,3.43]
[1766968956375,1.28288094,127.21,127.16,3.43]
[1766968956973,0.05058856,127.2,127.17,0.05835467]
[1766968957379,1.3334695,127.2,127.17,0.05835467]